bitfinex/quotes_ETHUSD_20250329
["timestamp","ask_amount","ask_price","bid_price","bid_amount"]
[1743282121960,5.48366,1823.6,1823.2,6.08793288]
[1743282122163,5.48322,1823.8,1823.2,6.08793288]
[1743282122323,8.609,1824.0,1823.4,5.48405]
[1743282122527,8.609,1824.0,1823.5,6.032155]
[1743282122763,14.09147,1824.0,1823.5,6.032095]
[1743282123057,8.609,1824.0,1823.6,5.48363]
[1743282123257,1.11710424,1824.2,1823.5,1.349005]
[1743282123463,3.0,1824.3,1823.9,5.48271]
[1743282124345,5.48129,1824.4,1823.9,5.48271]
[1743282124544,10.96275,1824.4,1823.9,5.48271]
[1743282125465,8.48126,1824.4,1823.9,5.48271]
[1743282125683,1.10840484,1824.3,1823.9,5.48271]
[1743282125963,6.59002484,1824.3,1823.8,5.48303]
[1743282126333,1.10840484,1824.3,1823.9,5.48272]
[1743282127265,1.10840484,1824.3,1824.0,5.48231]
[1743282127577,11.08889,1824.9,1824.4,5.48119]
[1743282127783,5.48053,1824.7,1824.2,5.48158]
[1743282127964,5.48077,1824.6,1824.2,5.48158]
[1743282128671,5.48077,1824.6,1824.1,5.48201116]
[1743282128838,10.96156,1824.6,1824.1,5.48201116]
[1743282129035,5.48095,1824.5,1824.1,5.48201116]
[1743282129355,5.48037,1824.7,1824.2,5.48179]
[1743282129559,5.47945,1825.0,1824.4,5.48124]
[1743282129865,5.48021,1824.8,1824.3,5.48153]
[1743282130066,5.48021,1824.8,1824.3,5.48129]
[1743282130475,5.48021,1824.8,1824.3,10.96271]
[1743282130643,14.08575,1824.9,1824.3,5.48129]
[1743282130845,5.48081,1824.6,1824.2,1.16e-06]
[1743282131063,5.48081,1824.6,1824.2,5.48182]
[1743282131374,5.48062,1824.7,1824.2,5.48182]
[1743282131675,5.48073,1824.6,1824.2,5.48182]
[1743282132191,3.0,1824.6,1823.9,1.16e-06]
[1743282132481,5.48188,1824.2,1823.8,5.48289]
[1743282133051,5.48218,1824.1,1823.6,6.27247]
[1743282133249,5.48297,1823.9,1823.4,5.48399]
[1743282133492,5.48305,1823.8,1823.2,5.4848]
[1743282133695,5.48336,1823.7,1823.3,5.48443]
[1743282135292,3.0,1823.9,1823.3,0.92001625]
[1743282135498,8.609,1823.9,1823.7,5.48322]
[1743282135798,8.609,1823.9,1823.6,5.48341]
[1743282136093,5.48199,1824.2,1823.6,5.53825231]
[1743282136298,3.0,1824.1,1823.8,5.48286]
[1743282136496,5.607,1824.2,1823.9,5.48258]
[1743282138274,5.607,1824.2,1823.7,5.48322]
[1743282138275,5.48219,1824.1,1823.7,5.48322]
[1743282138464,12.197851,1824.2,1823.8,5.48305]
[1743282140387,12.197851,1824.2,1823.7,5.48322]
[1743282140388,5.48217,1824.1,1823.7,5.48322]
[1743282140590,5.48268,1824.0,1823.5,5.4838]
[1743282140794,5.48288,1823.9,1823.5,10.9676]
[1743282141294,5.48268,1824.0,1823.6,5.4836]
[1743282141588,6.58000599,1824.0,1823.6,5.4836]
[1743282143864,6.58000599,1824.0,1823.5,5.4838]
[1743282144184,5.48282,1823.9,1823.5,5.4838]
[1743282144494,4.483,1823.5,1822.6,5.48647]
[1743282144693,7.97411989,1823.7,1822.3,0.7844]
[1743282144694,2.49057989,1823.0,1822.5,5.48674]
[1743282144995,5.646,1822.9,1822.5,5.48674]
[1743282145572,5.646,1822.9,1822.1,6.27234]
[1743282145573,11.1319,1822.9,1822.4,5.48721]
[1743282145772,5.646,1822.9,1822.4,5.48705]
[1743282146165,11.13183,1822.9,1822.3,5.48752]
[1743282146367,5.48609,1822.8,1822.2,5.48757]
[1743282146696,10.97244,1822.8,1822.2,5.48757]
[1743282146995,5.48606,1822.8,1822.1,0.7844]
[1743282147299,5.48649,1822.7,1822.2,5.48772]
[1743282147461,5.48649,1822.7,1822.1,6.27253]
[1743282147661,5.48671,1822.6,1822.1,7.448601]
[1743282147994,5.48671,1822.6,1822.1,0.7844]
[1743282148185,5.48709,1822.5,1822.0,5.48844]
[1743282148393,11.13109,1822.5,1822.0,5.48844]
[1743282148895,2.49057989,1822.7,1821.9,0.83130116]
[1743282149198,11.12883,1822.6,1822.0,5.48847]
[1743282149367,5.48739,1822.4,1822.0,0.63197712]
[1743282149559,5.48739,1822.4,1822.0,6.12037712]
[1743282149897,5.48739,1822.4,1821.9,6.31981]
[1743282149898,5.48761,1822.3,1821.9,6.31981]
[1743282150397,5.48792,1822.2,1821.9,0.8313]
[1743282150570,5.48774,1822.3,1821.8,5.48894]
[1743282151092,10.97559,1822.3,1821.8,5.48894]
[1743282151596,5.48817,1822.1,1821.7,5.48934]
[1743282152368,5.4879,1822.2,1821.7,5.48934]
[1743282152564,10.97606,1822.2,1821.7,5.48934]
[1743282152770,16.61106,1822.2,1821.7,5.48934]
[1743282153190,8.48712,1822.5,1822.0,5.48828]
[1743282153397,14.12112,1822.5,1822.0,5.48828]
[1743282153601,19.60828,1822.5,1822.0,5.5431581]
[1743282153803,19.60822,1822.5,1822.0,5.5431581]
[1743282154377,5.48731,1822.4,1822.0,5.5431581]
[1743282156306,5.48731,1822.4,1822.0,5.48828]
[1743282156802,2.49057989,1822.6,1822.2,5.48766]
[1743282156972,5.617,1822.5,1822.2,5.48766]
[1743282157602,5.617,1822.5,1822.2,10.97538]
[1743282158491,5.4865,1822.7,1822.3,5.48751]
[1743282158692,29.043,1823.1,1822.5,5.48676]
[1743282158893,11.09867,1823.0,1822.5,6.04092318]
[1743282159107,3.0,1822.9,1822.5,5.48676]
[1743282159886,8.48593,1822.9,1822.5,5.48676]
[1743282160587,3.0,1822.9,1822.1,0.75420116]
[1743282160928,3.0,1822.9,1822.5,5.48693]
[1743282160929,0.3,1822.8,1822.5,5.48693]
[1743282161423,7.97544989,1823.2,1822.8,5.48598]
[1743282161593,11.09459,1823.3,1822.8,5.48591]
[1743282161904,3.0,1823.2,1822.9,5.48557]
[1743282162516,3.0,1823.2,1822.8,5.48591]
[1743282162899,8.48498,1823.2,1822.8,5.48591]
[1743282163102,13.97009,1823.2,1822.8,5.48591]
[1743282163289,5.48523,1823.1,1822.7,5.48634]
[1743282163496,5.48593,1822.9,1822.4,5.48713116]
[1743282163712,5.48593,1822.9,1822.5,5.48694]
[1743282163924,11.09393,1822.9,1822.5,5.48694]
[1743282165299,11.09393,1822.9,1822.2,1.16e-06]
[1743282165300,5.48628,1822.8,1822.2,1.16e-06]
[1743282165621,1.108871,1822.8,1822.4,5.48725]
[1743282165824,5.48609,1822.8,1822.4,5.48725]
[1743282166032,19.07054989,1822.9,1822.5,5.48692]
[1743282166195,19.07046989,1822.9,1822.5,5.48692]
[1743282166390,13.58451989,1822.9,1822.5,5.48692]
[1743282166922,5.598,1823.1,1822.8,5.48595]
[1743282168429,5.48562,1823.0,1822.6,5.48648]
[1743282168933,5.48562,1823.0,1822.6,10.97303]
[1743282169523,5.48634,1822.8,1822.3,5.48743]
[1743282169741,3.03914189,1822.9,1822.1,6.24211]
[1743282169946,5.48678,1822.6,1822.2,5.4878]
[1743282170726,11.07942,1822.7,1822.3,5.48756]
[1743282170920,5.593,1822.7,1822.4,5.4872]
[1743282171122,5.59,1822.8,1822.5,5.48684]
[1743282171350,11.07617,1822.8,1822.4,5.48702]
[1743282172019,5.587,1823.0,1822.8,5.48601]
[1743282172347,5.587,1823.0,1822.7,5.48636]
[1743282173246,5.587,1823.0,1822.7,10.97249]
[1743282173542,5.587,1823.0,1822.7,5.48613]
[1743282174245,5.587,1823.0,1822.5,0.7679]
[1743282174246,8.579,1823.1,1822.5,6.25475]
[1743282174449,8.579,1823.1,1822.7,5.48617]
[1743282174747,8.579,1823.1,1822.7,10.97232]
[1743282175346,5.48549,1823.0,1822.5,11.74154]
[1743282175528,5.48549,1823.0,1822.5,6.25466]
[1743282175727,5.48549,1823.0,1822.6,5.48655]
[1743282176540,14.06417,1823.1,1822.7,5.48634]
[1743282176741,14.06418,1823.1,1822.7,5.48625]
[1743282176960,14.06418,1823.1,1822.8,5.48587]
[1743282176961,8.579,1823.1,1822.8,5.48587]
[1743282177134,14.06427,1823.1,1822.7,5.48625]
[1743282177868,5.48548,1823.0,1822.6,5.48658]
[1743282178850,5.48548,1823.0,1822.6,5.48645]
[1743282179561,5.48548,1823.0,1822.6,10.97289]
[1743282179774,8.579,1823.1,1822.7,5.48628]
[1743282179986,14.06417,1823.1,1822.7,10.97247]
[1743282180126,14.06417,1823.1,1822.7,5.48619]
[1743282180461,8.579,1823.1,1822.8,5.48581]
[1743282181060,14.06419,1823.1,1822.8,5.48581]
[1743282181554,7.97544989,1823.2,1822.8,5.48581]
[1743282181755,5.572,1823.8,1822.9,0.7679]
[1743282182070,5.48387,1823.6,1823.1,5.48498]
[1743282182259,5.48412,1823.5,1823.1,5.48498]
[1743282183454,5.48479,1823.3,1822.9,6.25349116]
[1743282183655,5.48479,1823.3,1822.9,5.48559]
[1743282184156,5.48469,1823.3,1822.9,5.48559]
[1743282184358,7.140085,1823.3,1822.9,5.48559]
[1743282185259,5.48503,1823.2,1822.8,5.48606]
[1743282185972,7.140085,1823.3,1822.8,10.97191]
[1743282186256,1.655395,1823.3,1822.7,0.7679]
[1743282186457,5.49057989,1823.3,1822.6,0.40987001]
[1743282186668,5.49057989,1823.3,1822.6,5.89635001]
[1743282186669,5.48547,1823.0,1822.6,5.89635001]
[1743282187242,5.48619,1822.8,1822.6,0.40987001]
[1743282187433,5.4864,1822.7,1822.4,0.40987001]
[1743282187871,10.97294,1822.7,1822.4,0.40987001]
[1743282188035,5.4864,1822.7,1822.4,0.40987001]
[1743282188564,8.48696,1822.5,1822.4,0.40987001]
[1743282188773,5.48814,1822.2,1822.0,0.40987001]
[1743282188945,19.04572989,1822.2,1822.0,0.40987001]
[1743282189144,13.55757989,1822.2,1822.0,0.40987001]
[1743282189347,19.04560989,1822.2,1822.0,0.40987001]
[1743282189530,5.48817,1822.1,1822.0,0.40987001]
[1743282189736,8.48817,1822.1,1821.6,6.27347]
[1743282189936,5.48853,1822.0,1821.6,6.27347]
[1743282190662,5.4889,1821.9,1821.5,5.48998]
[1743282191032,5.48853,1822.0,1821.5,5.48978]
[1743282191268,10.97727,1822.0,1821.6,5.48951]
[1743282191461,8.89999426,1822.1,1821.6,5.4894]
[1743282191635,5.48871,1822.0,1821.6,5.4894]
[1743282193482,15.06480621,1822.1,1821.6,5.48961]
[1743282193670,3.0,1821.9,1821.6,5.48961]
[1743282195370,3.0,1821.9,1821.5,5.48991]
[1743282195571,3.0,1821.9,1821.4,6.27384]
[1743282195572,3.0,1821.9,1821.4,6.27396]
[1743282195876,8.4889,1821.9,1821.4,11.76404]
[1743282196091,8.4889,1821.9,1821.5,5.48992]
[1743282196783,3.0,1821.9,1821.6,5.48952]
[1743282199395,2.49057989,1822.4,1821.6,0.548952]
[1743282199597,5.48727,1822.4,1822.0,5.48827]
[1743282199763,3.0,1822.3,1822.0,5.48827]
[1743282200791,5.48779,1822.3,1821.9,0.7838]
[1743282201384,5.48787,1822.2,1821.9,0.7838]
[1743282201902,5.48787,1822.2,1821.8,5.48879]
[1743282202610,3.0,1822.1,1821.5,5.48974116]
[1743282202806,5.48938,1821.7,1821.3,6.25379]
[1743282203083,5.48981,1821.6,1821.1,5.49091]
[1743282203493,5.49,1821.5,1821.1,10.98189]
[1743282203787,5.48981,1821.6,1821.2,5.49086]
[1743282204190,5.49006,1821.5,1821.1,5.49091]
[1743282205177,5.49052,1821.4,1821.0,5.49137]
[1743282205483,5.49041,1821.4,1821.0,5.49137]
[1743282206080,6.587977,1821.5,1821.0,10.98266]
[1743282206279,12.078197,1821.5,1821.0,5.49129]
[1743282206978,5.4903,1821.4,1820.9,5.49178]
[1743282207184,5.4903,1821.4,1821.0,5.49131]
[1743282207405,6.587967,1821.5,1821.0,5.49131]
[1743282207766,12.078207,1821.5,1821.0,5.49131]
[1743282208291,5.4903,1821.4,1821.0,5.49131]
[1743282208500,10.98086,1821.4,1820.9,10.98343]
[1743282208697,5.4903,1821.4,1821.0,5.49145]
[1743282209066,4.51703285,1821.5,1821.1,5.49099]
[1743282209263,0.72149116,1821.9,1820.8,0.7635]
[1743282209469,11.02759,1822.0,1821.5,5.48977]
[1743282209707,7.97844989,1822.2,1821.7,5.48929]
[1743282209918,5.54,1822.2,1821.8,5.48883]
[1743282210207,3.0,1822.1,1821.8,5.48883]
[1743282210367,8.48832,1822.1,1821.7,0.548929]
[1743282210697,5.54,1822.2,1821.7,5.48934]
[1743282210698,11.02799,1822.2,1821.7,5.48934]
[1743282210910,13.51851989,1822.2,1821.6,5.48947]
[1743282211092,5.4883,1822.1,1821.6,5.48947]
[1743282211304,13.51851989,1822.2,1821.7,10.97839]
[1743282211466,8.03057989,1822.2,1821.4,0.7635]
[1743282211672,5.48987,1821.6,1821.1,6.25455116]
[1743282211913,5.49049,1821.4,1821.0,5.49131]
[1743282212211,2.49057989,1821.6,1820.9,5.49178]
[1743282212212,11.03271,1821.3,1820.9,5.49178]
[1743282213319,11.03271,1821.3,1820.8,5.49179]
[1743282213608,11.03271,1821.3,1820.9,5.49177]
[1743282213609,13.52328989,1821.3,1820.9,5.49177]
[1743282213767,5.49104,1821.2,1820.8,5.49179]
[1743282214313,5.541,1821.3,1821.1,5.49105]
[1743282214613,5.541,1821.3,1821.0,5.49137]
[1743282215373,8.538,1821.4,1821.1,5.49108]
[1743282215574,14.02843,1821.4,1820.9,6.25509]
[1743282215769,19.51893,1821.4,1820.9,6.25509]
[1743282216309,8.538,1821.4,1820.9,0.7635]
[1743282216514,5.49089,1821.2,1820.8,5.4919]
[1743282217073,5.49121,1821.1,1820.7,5.49239]
[1743282217285,5.49162,1821.0,1820.5,5.49276]
[1743282217597,5.4919,1820.9,1820.3,6.25612]
[1743282217804,5.49226,1820.8,1820.4,5.49311]
[1743282218515,5.49226,1820.8,1820.4,5.49327]
[1743282219902,8.02857989,1821.0,1820.1,6.25675]
[1743282219903,2.49057989,1821.0,1820.1,6.25675]
[1743282220092,5.533,1820.9,1820.5,5.49273]
[1743282220400,5.533,1820.9,1820.6,5.49254]
[1743282221311,5.533,1820.9,1820.4,5.49328]
[1743282221705,5.4923,1820.8,1820.4,5.49328]
[1743282222305,11.02504,1820.9,1820.4,10.98632]
[1743282222505,6.88456199,1820.9,1820.5,5.49283]
[1743282222807,5.533,1820.9,1820.5,5.49283]
[1743282224003,5.533,1820.9,1820.6,5.49262]
[1743282224407,5.533,1820.9,1820.5,5.49283]
[1743282224807,5.49215,1820.8,1820.4,5.49329]
[1743282225174,5.49215,1820.8,1820.3,5.49359]
[1743282225406,5.49239,1820.7,1820.3,5.49359]
[1743282226107,7.143864,1820.8,1820.2,5.49389116]
[1743282226108,5.49283,1820.6,1820.2,5.49389116]
[1743282226279,5.49283,1820.6,1820.2,5.49378]
[1743282227578,5.49283,1820.6,1820.2,10.9875]
[1743282227801,5.49283,1820.6,1820.2,5.49372]
[1743282228808,5.49312,1820.5,1820.1,10.98824]
[1743282229315,6.591353,1820.6,1820.2,5.49387]
[1743282230584,5.49341,1820.4,1820.0,5.4943]
[1743282230907,5.49333,1820.4,1820.0,5.4943]
[1743282231315,5.49333,1820.4,1820.0,10.98858]
[1743282231500,6.7552972,1820.4,1820.0,5.49428]
[1743282231684,6.7552972,1820.4,1820.0,10.98861]
[1743282232194,6.7552972,1820.4,1820.0,5.49428]
[1743282233210,12.2488372,1820.4,1820.0,5.49428]
[1743282233414,5.49364,1820.3,1819.9,5.49478]
[1743282234909,5.49364,1820.3,1819.9,10.9894]
[1743282235110,10.98747,1820.3,1819.9,5.49462]
[1743282235485,5.49364,1820.3,1819.9,5.49462]
[1743282236220,5.494,1820.2,1819.8,5.49508]
[1743282236922,5.494,1820.2,1819.8,10.98996]
[1743282237217,5.494,1820.2,1819.9,5.49478]
[1743282238109,5.494,1820.2,1819.7,0.8008]
[1743282238110,5.49435,1820.1,1819.7,6.29607]
[1743282238292,5.49435,1820.1,1819.7,10.9905]
[1743282238629,5.49453,1820.0,1819.6,5.49555]
[1743282238813,12.081185,1820.1,1819.7,5.4953]
[1743282238999,6.586835,1820.1,1819.8,5.4951]
[1743282239201,1.22489172,1820.3,1820.0,5.49432]
[1743282239202,5.486,1820.2,1820.0,5.49432]
[1743282239419,5.486,1820.2,1820.0,5.49429]
[1743282239726,5.486,1820.2,1819.9,5.49478]
[1743282240286,3.0,1820.5,1820.1,5.49396]
[1743282240516,3.0,1820.3,1820.1,5.49396]
[1743282240831,3.0,1820.3,1820.0,5.49442]
[1743282241293,3.0,1820.3,1820.1,5.49419]
[1743282241635,3.0,1820.3,1819.2,5.49676]
[1743282241636,5.49567,1819.7,1819.2,5.49676]
[1743282241933,5.533,1819.7,1819.2,5.49676]
[1743282242089,11.02855,1819.7,1819.2,5.49676]
[1743282242523,3.0,1819.5,1819.0,10.99492]
[1743282242840,8.49617,1819.5,1819.0,5.4974]
[1743282243320,5.49647,1819.4,1818.9,0.8158]
[1743282243625,5.49647,1819.4,1818.9,6.31357]
[1743282243929,5.49647,1819.4,1818.9,11.81117]
[1743282244628,3.0,1819.5,1819.1,5.49693]
[1743282244842,3.0,1819.5,1819.2,5.49673]
[1743282245060,3.0,1819.5,1819.1,5.49716]
[1743282245634,8.49602,1819.5,1819.1,5.49716]
[1743282246036,3.0,1819.5,1819.1,5.49699]
[1743282246211,3.0,1819.8,1819.3,6.25766]
[1743282246605,8.49524,1819.8,1819.4,5.49625]
[1743282246954,8.49524,1819.8,1819.3,6.25766]
[1743282246955,13.99064,1819.8,1819.3,6.25766]
[1743282247251,8.49524,1819.8,1819.3,11.75404]
[1743282247746,8.49524,1819.8,1819.4,5.49627]
[1743282248850,10.446554,1819.8,1819.4,5.49624]
[1743282249053,10.446554,1819.8,1819.3,6.25758]
[1743282249250,10.446484,1819.8,1819.4,5.49628]
[1743282249722,10.446444,1819.8,1819.4,5.49628]
[1743282250058,15.941834,1819.8,1819.3,6.25758]
[1743282250216,5.49583,1819.6,1819.1,11.75523]
[1743282250413,14.02789,1819.6,1819.2,5.4969]
[1743282250646,8.532,1819.6,1819.2,5.4969]
[1743282250845,14.02777,1819.6,1819.2,5.4969]
[1743282251556,20.37235,1819.6,1819.2,5.4969]
[1743282251752,5.49607,1819.5,1819.1,5.49714]
[1743282253608,9.3806,1819.6,1818.9,1.16e-06]
[1743282253871,5.49661,1819.4,1818.9,5.49768116]
[1743282254634,5.49692,1819.2,1818.9,1.16e-06]
[1743282254868,14.87641,1819.6,1818.9,1.16e-06]
[1743282254869,10.99336,1819.3,1818.9,5.49769]
[1743282255049,12.092806,1819.3,1818.9,5.49769]
[1743282255277,1.099336,1819.3,1819.0,5.49746]
[1743282255458,5.49647,1819.4,1819.0,10.99477]
[1743282255644,9.3806,1819.6,1819.0,5.49727]
[1743282255856,5.4965,1819.4,1819.0,5.49727]
[1743282256181,5.49663,1819.3,1818.9,5.49776]
[1743282256381,5.4965,1819.4,1818.6,6.25989]
[1743282256382,5.49637,1819.4,1818.6,6.25989]
[1743282256536,5.49689,1819.3,1818.8,5.49798]
[1743282256936,5.49689,1819.3,1818.8,5.55295557]
[1743282257254,5.49695,1819.2,1818.8,5.49798]
[1743282257677,5.49695,1819.2,1818.8,5.49799]
[1743282258471,10.99411,1819.2,1818.8,5.49799]
[1743282258638,5.49695,1819.2,1818.8,5.49799]
[1743282259571,5.49695,1819.2,1818.8,5.49795]
[1743282261044,11.00195,1819.2,1818.7,6.124209]
[1743282261238,5.49662,1819.3,1818.8,5.49796]
[1743282261480,5.503,1819.3,1819.1,5.49715]
[1743282261681,5.503,1819.3,1819.0,5.49751]
[1743282264289,10.99975,1819.3,1818.9,5.4978]
[1743282268253,5.503,1819.3,1819.0,5.49742]
[1743282269243,5.49692,1819.2,1818.9,5.4978]
[1743282270138,10.99989,1819.3,1818.9,5.4978]
[1743282270337,10.99984,1819.3,1818.9,5.49771]
[1743282270575,16.49668,1819.3,1818.9,5.49771]
[1743282270783,10.99984,1819.3,1818.9,5.49771]
[1743282270963,12.91639948,1819.3,1818.8,5.49812]
[1743282271142,12.91639948,1819.3,1818.9,5.49776]
[1743282271539,18.41322948,1819.3,1818.9,5.49776]
[1743282271779,18.41322948,1819.3,1818.6,5.49858]
[1743282271780,5.49776,1819.0,1818.6,5.49858]
[1743282272071,0.549776,1818.9,1818.6,5.49869]
[1743282272283,5.49784,1818.9,1818.5,5.49882116]
[1743282272644,5.49784,1818.9,1818.5,5.44882116]
[1743282272839,5.49784,1818.9,1818.4,5.49933]
[1743282272840,5.49838,1818.8,1818.4,10.99849]
[1743282273243,10.99673,1818.8,1818.4,5.49916]
[1743282273446,5.49856,1818.7,1818.3,6.30872]
[1743282273676,5.49856,1818.7,1818.3,5.49962]
[1743282274463,13.25682348,1818.7,1818.3,5.49949]
[1743282274773,7.75815348,1818.7,1818.3,5.49949]
[1743282275279,7.75815348,1818.7,1818.3,5.49941]
[1743282275476,10.75665348,1819.2,1818.7,5.49843]
[1743282275663,3.0,1819.0,1818.9,5.49781]
[1743282275870,3.0,1819.0,1818.8,5.49793]
[1743282276182,3.0,1819.2,1818.9,5.49781]
[1743282276378,9.7644183,1819.2,1818.8,5.49796]
[1743282276566,9.7644183,1819.2,1818.7,5.49842]
[1743282276960,5.49734,1819.1,1818.7,5.49842]
[1743282277161,5.4977,1819.0,1818.6,5.49872]
[1743282277486,10.99546,1819.0,1818.6,5.49872]
[1743282277696,0.82836642,1818.9,1818.6,5.49872]
[1743282280792,5.465,1819.0,1818.6,5.49851]
[1743282281092,5.465,1819.0,1818.6,5.49845]
[1743282281301,5.465,1819.0,1818.7,5.4984]
[1743282281659,6.52687178,1819.2,1818.9,5.49775]
[1743282281955,13.95392,1819.2,1818.8,5.49811]
[1743282282693,19.45109,1819.2,1818.8,5.49811]
[1743282282989,21.71068348,1819.2,1818.8,5.49811]
[1743282283395,5.49725,1819.1,1818.8,5.49811]
[1743282283568,16.21351348,1819.2,1818.8,10.99612]
[1743282283780,16.21351348,1819.2,1818.9,5.49782]
[1743282283977,10.71659348,1819.2,1818.9,5.49782]
[1743282284295,8.457,1819.2,1818.9,5.49782]
[1743282285912,8.457,1819.2,1818.9,1.099583]
[1743282285913,3.0,1819.2,1818.9,1.099583]
[1743282286117,11.35016131,1819.4,1819.0,10.99468]
[1743282286323,11.35016131,1819.4,1819.0,10.99472]
[1743282286324,3.0,1819.3,1819.0,10.99472]
[1743282286691,3.0,1819.3,1819.1,5.49717]
[1743282287413,3.0,1819.3,1819.2,5.49692]
[1743282287601,8.44,1819.5,1819.2,5.49692]
[1743282287804,1.61954835,1819.5,1819.3,5.49654]
[1743282288112,13.61475781,1819.9,1819.5,5.49579]
[1743282288417,3.0,1819.8,1819.5,5.49579]
[1743282288913,13.19441348,1819.9,1819.5,10.99162]
[1743282289212,7.69959348,1819.9,1819.6,5.49569]
[1743282289512,3.0,1819.8,1819.6,5.49569]
[1743282289721,9.56846883,1819.9,1819.6,5.49569]
[1743282289930,3.0,1819.8,1819.6,5.49569]
[1743282290124,8.49513,1819.8,1819.4,5.49623]
[1743282290415,8.49513,1819.8,1819.2,0.7978]
[1743282290416,5.443,1820.0,1819.6,5.49564]
[1743282290585,3.0,1819.9,1819.6,5.49564]
[1743282292928,3.0,1819.9,1819.6,10.99118]
[1743282293123,3.0,1820.1,1819.6,6.2532]
[1743282293303,8.433,1820.2,1819.7,5.49541]
[1743282293509,8.433,1820.2,1819.6,0.7575]
[1743282293708,8.433,1820.2,1819.6,1.382851]
[1743282293907,8.433,1820.2,1819.8,5.4949]
[1743282294110,8.433,1820.2,1819.6,1.382851]
[1743282294111,34.537,1820.3,1820.1,5.49407]
[1743282294425,34.537,1820.3,1819.9,10.98924]
[1743282294727,3.0,1820.2,1820.0,5.4945]
[1743282295515,3.0,1820.2,1819.9,5.4946]
[1743282296222,3.0,1820.2,1819.8,5.49509]
[1743282296223,3.0,1820.2,1819.8,5.49489]
[1743282296418,3.0,1820.2,1819.9,5.49468]
[1743282296823,5.49433,1820.1,1819.7,5.49536]
[1743282297019,7.75392348,1820.1,1819.7,5.49536]
[1743282297222,7.75392348,1820.1,1819.7,10.99054]
[1743282297629,7.75392348,1820.1,1819.8,5.4951]
[1743282297830,3.0,1820.2,1819.9,10.98919]
[1743282298026,3.0,1820.2,1819.9,5.49453]
[1743282298330,3.0,1820.2,1820.0,5.49422]
[1743282298908,2.25959348,1820.3,1820.0,5.49422]
[1743282299130,42.26910348,1820.7,1820.3,5.49337]
[1743282299426,3.0,1820.6,1820.2,5.49376]
[1743282299614,8.49269,1820.6,1820.2,5.49367]
[1743282299820,5.49269,1820.6,1820.2,5.49367]
[1743282300128,3.0,1820.5,1820.2,5.49367]
[1743282300324,3.849269,1820.5,1819.8,10.9375]
[1743282300529,8.49417,1820.2,1819.7,5.49528]
[1743282300730,8.49417,1820.2,1819.7,10.99045]
[1743282300731,5.49432,1820.1,1819.7,10.99045]
[1743282300925,8.438,1820.2,1819.8,5.49486]
[1743282301128,13.93191,1820.2,1819.8,5.49486]
[1743282301342,3.0,1820.0,1819.6,6.25309]
[1743282301649,8.49463,1820.0,1819.5,5.49582]
[1743282302020,8.49463,1820.0,1819.6,5.49555]
[1743282303646,5.432,1819.9,1819.7,5.4954]
[1743282303819,5.432,1819.9,1819.7,10.99061]
[1743282304847,5.432,1819.9,1819.7,5.49521]
[1743282305047,5.432,1819.9,1819.4,0.7575]
[1743282305048,5.49563,1819.7,1819.4,0.7575]
[1743282305217,5.49563,1819.7,1819.2,11.81438]
[1743282305418,5.49563,1819.7,1819.3,5.49657]
[1743282306757,5.49601,1819.5,1819.1,5.49703]
[1743282306944,10.92101,1819.5,1819.1,5.49703]
[1743282307328,5.49648,1819.4,1818.9,5.49762]
[1743282307529,7.75637348,1819.3,1818.8,6.31911]
[1743282307753,5.497,1819.2,1818.8,6.31911]
[1743282309039,13.18593348,1819.1,1818.6,0.821]
[1743282309445,5.49763,1819.0,1818.6,6.31951]
[1743282310525,5.49763,1819.0,1818.6,5.49851]
[1743282310965,5.4983,1818.8,1818.4,5.4993]
[1743282311329,7.75758348,1818.9,1818.4,5.4993]
[1743282311829,4.5273092,1819.0,1818.6,5.49873]
[1743282311830,5.425,1818.8,1818.6,5.49873]
[1743282312050,5.425,1818.8,1818.7,5.49843]
[1743282312255,5.425,1818.8,1818.6,5.49873]
[1743282312637,5.425,1818.8,1818.4,5.49926]
[1743282312843,10.92327,1818.8,1818.4,5.49926]
[1743282314356,5.425,1818.8,1818.4,10.99838]
[1743282314562,7.75694348,1819.1,1818.4,1.1548321]
[1743282314738,5.421,1819.0,1818.8,5.49786]
[1743282315055,5.421,1819.0,1818.6,6.31968]
[1743282315056,3.0,1818.9,1818.6,5.49856]
[1743282315259,3.0,1818.9,1818.6,5.49873]
[1743282315560,3.0,1818.9,1818.7,5.49823]
[1743282315858,3.0,1818.9,1818.7,10.99643]
[1743282316160,8.422,1819.1,1818.7,5.4982]
[1743282316462,10.11507735,1819.1,1818.7,5.4982]
[1743282316757,15.53507735,1819.1,1818.7,5.4982]
[1743282317160,1.61785735,1819.1,1818.6,5.49873]
[1743282317368,8.418,1819.2,1818.9,5.49768]
[1743282317861,8.418,1819.2,1818.8,5.49807]
[1743282317862,8.49697,1819.2,1818.8,5.49807]
[1743282318062,3.0,1819.2,1818.8,5.4979]
[1743282318229,3.0,1819.2,1818.9,5.49782]
[1743282318430,10.91115,1819.8,1819.4,5.49618]
[1743282318633,3.0,1819.7,1819.2,5.49663]
[1743282318830,10.75524348,1819.7,1819.2,5.49663]
[1743282319026,10.75524348,1819.7,1819.3,5.4966]
[1743282319262,12.37236783,1819.7,1819.3,5.4466]
[1743282319464,9.37236783,1819.7,1819.3,5.4466]
[1743282319654,3.0,1819.6,1819.3,10.94304]
[1743282319866,3.0,1819.6,1819.4,5.44611]